fUSD/lending_fUSD_20250911
["ID","MTS","AMOUNT","RATE_DAILY","PERIOD"]
[384813902,1757568656376,-400.0,0.00030989,7]
[384813903,1757568656385,-400.0,0.00030989,7]
[384813904,1757568656394,-400.0,0.00030989,7]
[384813905,1757568656404,-400.0,0.00030989,7]
[384813906,1757568656413,-402.10388451,0.00030989,7]
[384813908,1757568656424,-400.0,0.00030989,7]
[384813909,1757568656433,-400.0,0.00030989,7]
[384813910,1757568656442,-400.0,0.00030989,7]
[384813911,1757568656451,-400.0,0.00030989,7]
[384813912,1757568656461,-953.19,0.00030989,7]
[384813913,1757568656470,-400.0,0.00030989,7]
[384813914,1757568656479,-400.0,0.00030989,7]
[384813916,1757568656488,-400.0,0.00030989,7]
[384813917,1757568656497,-520.95,0.00030989,7]
[384813918,1757568656506,-400.0,0.00030989,7]
[384813919,1757568656515,-400.0,0.00030989,7]
[384813920,1757568656524,-1661.36,0.00030989,2]
[384813921,1757568656534,-400.0,0.00030989,7]
[384813922,1757568656543,-400.0,0.00030989,7]
[384813923,1757568656552,-1253.59,0.00030989,7]
[384813924,1757568656561,-400.0,0.00030989,7]
[384813925,1757568656570,-400.0,0.00030989,7]
[384813926,1757568656580,-400.0,0.00030989,7]
[384813927,1757568656591,-400.0,0.00030989,7]
[384813928,1757568656600,-411.86389874,0.00030989,7]
[384813929,1757568656611,-400.0,0.00030989,7]
[384813930,1757568656620,-400.0,0.00030989,7]
[384813931,1757568656631,-177.77863985,0.00030989,7]
[384813932,1757568656640,-4020.11,0.00030989,7]
[384813933,1757568656649,-400.0,0.00030989,7]
[384813934,1757568656659,-404.07016897,0.00030989,7]
[384813935,1757568656668,-406.46115432,0.00030989,7]
[384813936,1757568656677,-400.0,0.00030989,7]
[384813937,1757568656686,-400.0,0.00030989,7]
[384813938,1757568656695,-408.43588612,0.00030989,7]
[384813939,1757568656704,-676.63,0.00030989,7]
[384813940,1757568656713,-825.26,0.00030989,7]
[384813941,1757568656723,-403.12985949,0.00030989,7]
[384813942,1757568656731,-687.83,0.00030989,7]
[384813943,1757568656740,-400.0,0.00030989,7]
[384813944,1757568656749,-602.99,0.00030989,7]
[384813945,1757568656759,-413.71003514,0.00030989,7]
[384813946,1757568656768,-620.67,0.00030989,7]
[384813947,1757568656777,-219.67847905,0.00030989,7]
[384813948,1757568656786,-400.0,0.00030989,7]
[384813949,1757568656795,-427.56,0.00030989,7]
[384813950,1757568656804,-1770.81,0.00030989,7]
[384813951,1757568656813,-457.62,0.00030989,7]
[384813952,1757568656822,-400.0,0.00030989,7]
[384813953,1757568656831,-400.0,0.00030989,7]
[384813954,1757568656840,-400.0,0.00030989,7]
[384813955,1757568656849,-437.47756335,0.00030989,2]
[384813956,1757568656859,-400.0,0.00030989,7]
[384813957,1757568656868,-400.0,0.00030989,7]
[384813958,1757568656877,-400.0,0.00030989,7]
[384813959,1757568656886,-400.0,0.00030989,7]
[384813960,1757568656895,-755.67,0.00030989,7]
[384813961,1757568656904,-400.0,0.00030989,7]
[384813962,1757568656913,-400.0,0.00030989,7]
[384813963,1757568656922,-400.0,0.00030989,7]
[384813964,1757568656931,-493.43,0.00030989,7]
[384813965,1757568656940,-465.71,0.00030989,7]
[384813966,1757568656949,-730.12,0.00030989,7]
[384813968,1757568656958,-1247.69,0.00030989,7]
[384813969,1757568656967,-400.0,0.00030989,7]
[384813970,1757568656976,-400.0,0.00030989,7]
[384813971,1757568656985,-400.0,0.00030989,7]
[384813972,1757568656994,-400.0,0.00030989,7]
[384813973,1757568657003,-400.0,0.00030989,7]
[384813974,1757568657013,-1252.77,0.00030989,7]
[384813975,1757568657022,-400.0,0.00030989,7]
[384813976,1757568657031,-400.0,0.00030989,7]
[384813978,1757568657040,-400.0,0.00030989,7]
[384813979,1757568657049,-400.0,0.00030989,7]
[384813980,1757568657058,-649.53,0.00030989,7]
[384813981,1757568657067,-400.0,0.00030989,7]
[384813982,1757568657076,-635.51,0.00030989,7]
[384813983,1757568657086,-2194.7,0.00030989,7]
[384813984,1757568657095,-400.0,0.00030989,7]
[384813985,1757568657103,-403.24514648,0.00030989,7]
[384813986,1757568657112,-400.0,0.00030989,7]
[384813987,1757568657121,-400.0,0.00030989,7]
[384813988,1757568657130,-406.04960992,0.00030989,7]
[384813989,1757568657139,-400.0,0.00030989,7]
[384813990,1757568657148,-400.0,0.00030989,7]
[384813991,1757568657157,-627.97,0.00030989,7]
[384813992,1757568657165,-400.0,0.00030989,7]
[384813993,1757568657175,-400.0,0.00030989,7]
[384813994,1757568657184,-400.0,0.00030989,7]
[384813995,1757568657194,-400.0,0.00030989,7]
[384813996,1757568657204,-400.0,0.00030989,7]
[384813997,1757568657213,-400.0,0.00030989,7]
[384813999,1757568657222,-400.0,0.00030989,7]
[384814000,1757568657231,-3756.98,0.00030989,7]
[384814001,1757568657239,-400.0,0.00030989,7]
[384814002,1757568657248,-400.0,0.00030989,7]
[384814003,1757568657257,-400.0,0.00030989,7]
[384814004,1757568657266,-400.0,0.00030989,7]
[384814005,1757568657275,-472.58,0.00030989,7]
[384814006,1757568657284,-400.0,0.00030989,7]
[384814007,1757568657293,-400.0,0.00030989,7]
[384814008,1757568657302,-151.0,0.0003099,7]
[384814009,1757568657311,-153.303976,0.0003099,7]
[384814010,1757568657319,-214.63571642,0.0003099,2]
[384814011,1757568657329,-151.0,0.00030997,7]
[384814012,1757568657338,-150.0,0.00030999,2]
[384814013,1757568657346,-400.0,0.00030999,7]
[384814014,1757568657355,-552.45,0.00030999,7]
[384814015,1757568657365,-462.63,0.00030999,7]
[384814016,1757568657374,-400.0,0.00030999,7]
[384814017,1757568657382,-688.49,0.00030999,7]
[384814018,1757568657391,-826.84,0.00030999,7]
[384814019,1757568657401,-479.69,0.00030999,7]
[384814020,1757568657410,-400.0,0.00030999,7]
[384814021,1757568657418,-400.0,0.00030999,7]
[384814022,1757568657427,-954.55,0.00030999,7]
[384814023,1757568657436,-588.93,0.00030999,7]
[384814024,1757568657445,-400.0,0.00030999,7]
[384814025,1757568657454,-467.58,0.00030999,7]
[384814026,1757568657463,-487.34,0.00030999,7]
[384814027,1757568657472,-534.17,0.00030999,7]
[384814028,1757568657481,-768.28,0.00030999,7]
[384814029,1757568657490,-400.0,0.00030999,7]
[384814030,1757568657499,-400.0,0.00030999,7]
[384814031,1757568657508,-475.2383515,0.00030999,7]
[384814142,1757568958517,176.06,0.00029452,120]
[384814157,1757569084460,151.15,0.00014681,2]
[384814163,1757569162836,-220.53296687,0.000249,2]
[384814298,1757569704243,600.0,0.0003,120]
[384814313,1757569752105,-695.08647245,0.000249,2]
[384814314,1757569752127,-163.95029505,0.000252,2]
[384814315,1757569752148,-296.82343793,0.00026601,2]
[384814316,1757569752170,-250.0,0.0002739,2]
[384814317,1757569752191,-250.0,0.0002739,2]
[384814318,1757569752218,-695.08647226,0.00027827,8]
[384814319,1757569752239,-150.0,0.00028511,2]
[384814320,1757569752260,-203.14011895,0.00028641,2]
[384814321,1757569752283,-250.50154542,0.00028673,2]
[384814322,1757569752304,-238.2507568,0.00028771,2]
[384814335,1757569832185,-273.36139464,0.00028901,2]
[384814336,1757569832194,-301.11,0.00028965,30]
[384814337,1757569832203,-308.47203249,0.00029031,2]
[384814338,1757569832212,-343.58267033,0.00029161,2]
[384814339,1757569832222,-1287.71822476,0.0002928,2]
[384814340,1757569832231,-378.69330817,0.00029291,2]
[384814341,1757569832240,-150.0,0.00029329,7]
[384814342,1757569832249,-121.05248358,0.00029362,2]
[384814343,1757569832287,-569.39751642,0.00029362,2]
[384814344,1757569832296,-161.05,0.00029367,2]
[384814345,1757569832306,-187.02,0.00029398,2]
[384814346,1757569832318,-413.80394602,0.00029421,2]
[384814347,1757569832327,-334.72908676,0.00029458,2]
[384814348,1757569837676,-332.67500029,0.00029458,2]
[384814547,1757569839893,-532.59591295,0.00029458,2]
[384814549,1757569839903,-2007.44321106,0.00029459,2]
[384814551,1757569839915,-471.11909249,0.00029459,2]
[384814556,1757569839950,-252.01769645,0.00029459,2]
[384814558,1757569839959,-674.74,0.00029469,2]
[384814560,1757569839968,-448.91458386,0.00029551,2]
[384814562,1757569839977,-150.0,0.00029564,7]
[384814564,1757569839986,-150.0,0.00029564,7]
[384814566,1757569839995,-150.0,0.00029564,7]
[384814568,1757569840004,-159.82300203,0.00029564,7]
[384814571,1757569840013,-566.25919788,0.00029668,2]
[384814573,1757569840023,-484.02522171,0.00029681,2]
[384814576,1757569840032,-519.13585955,0.00029811,2]
[384814578,1757569840041,-248.71531821,0.00029839,2]
[384814580,1757569840050,-554.24649739,0.0002994,2]
[384814582,1757569840059,-4348.69826342,0.00029955,2]
[384814584,1757569840069,-322.6107,0.00029982,2]
[384814586,1757569840078,-500.0,0.00029982,2]
[384814588,1757569840087,-500.0,0.00029982,2]
[384814590,1757569840096,-411.1923901,0.00029982,2]
[384814592,1757569840105,-160.0,0.00029982,2]
[384814594,1757569840115,-151.0,0.00029982,2]
[384814596,1757569840124,-151.0,0.00029982,2]
[384814598,1757569840133,-151.0,0.00029982,2]
[384814600,1757569840142,-151.0,0.00029982,2]
[384814602,1757569840151,-646.65982734,0.00029982,2]
[384814604,1757569840159,-151.0,0.00029982,2]
[384814606,1757569840169,-151.0,0.00029982,2]
[384814608,1757569840178,-151.0,0.00029982,2]
[384814610,1757569840187,-151.0,0.00029982,2]
[384814612,1757569840197,-151.0,0.00029982,2]
[384814614,1757569840207,-151.0,0.00029982,2]
[384814616,1757569840216,-152.42781008,0.00029982,2]
[384814618,1757569840225,-160.19659677,0.00029982,2]
[384814620,1757569840234,-312.24098397,0.00029982,2]
[384814622,1757569840244,-1000.0,0.00029982,2]
[384814624,1757569840253,-1000.0,0.00029982,2]
[384814626,1757569840262,-1070.47194101,0.00029982,2]
[384814628,1757569840271,-151.0,0.00029982,2]
[384814630,1757569840280,-978.14069914,0.00029982,2]
[384814632,1757569840290,-500.0,0.00029999,2]
[384814634,1757569840299,-500.0,0.00029999,2]
[384814636,1757569840309,-500.0,0.00029999,2]
[384814638,1757569840321,-500.0,0.00029999,2]
[384814640,1757569840330,-500.0,0.00029999,2]
[384814642,1757569840339,-500.0,0.00029999,2]
[384814644,1757569840349,-500.0,0.00029999,2]
[384814646,1757569840359,-500.0,0.00029999,2]
[384814648,1757569840369,-500.0,0.00029999,2]
[384814650,1757569840379,-500.0,0.00029999,2]
[384814651,1757569840389,-500.0,0.00029999,2]
[384814654,1757569840398,-500.0,0.00029999,2]
[384814656,1757569840408,-500.0,0.00029999,2]
[384814658,1757569840419,-500.0,0.00029999,2]
[384814660,1757569840428,-500.0,0.00029999,2]
[384814662,1757569840438,-500.0,0.00029999,2]
[384814664,1757569840448,-500.0,0.00029999,2]
[384814666,1757569840457,-500.0,0.00029999,2]
[384814668,1757569840467,-500.0,0.00029999,2]
[384814670,1757569840478,-500.0,0.00029999,2]
[384814672,1757569840488,-500.0,0.00029999,2]
[384814674,1757569840497,-500.0,0.00029999,2]
[384814676,1757569840507,-500.0,0.00029999,2]
[384814678,1757569840516,-500.0,0.00029999,2]
[384814680,1757569840525,-500.0,0.00029999,2]
[384814682,1757569840535,-500.0,0.00029999,2]
[384814684,1757569840544,-500.0,0.00029999,2]
[384814686,1757569840554,-500.0,0.00029999,2]
[384814688,1757569840564,-500.0,0.00029999,2]
[384814690,1757569840575,-500.0,0.00029999,2]
[384814692,1757569840584,-532.00302466,0.00029999,2]
[384814694,1757569840594,-500.0,0.00029999,2]
[384814696,1757569840603,-500.0,0.00029999,2]
[384814698,1757569840613,-3000.0,0.0003,2]
[384814700,1757569840622,-163.0,0.0003,14]
[384814702,1757569840631,-8458.03878643,0.0003,2]
[384814725,1757569840837,-3333.89565517,0.0003,2]
[384814931,1757569842817,-28621.21435344,0.0003,2]
[384814938,1757569842875,-2821.29556633,0.0003,2]
[384814945,1757569842932,-3927.96,0.0003,2]
[384815242,1757569845901,-326.04607627,0.0003,2]
[384815995,1757569871583,706.53902459,0.000249,2]
[384815996,1757569871683,706.53902435,0.00027827,8]
[384816003,1757569922232,1000.0,0.0003,120]
[384816005,1757569944346,-151.0,0.00027103,2]
[384816006,1757569944370,-116.73698042,0.00027103,2]
[384816071,1757570017704,158.55,0.00014371,2]
[384816113,1757570152345,150.81,0.00028371,120]
[384816139,1757570284237,1000.0,0.00026025,120]
[384816142,1757570345962,322.33333507,0.000301,120]
[384816156,1757570523823,1000.0,0.0003,120]
[384816157,1757570540104,250.0,0.00015,2]
[384816167,1757570661469,151.46102524,0.00016,14]
[384816168,1757570678753,-151.0,0.00023555,2]
[384816169,1757570678782,-151.0,0.00023566,2]
[384816170,1757570678813,-115.92475585,0.00023585,2]
[384816177,1757570743518,158.99,0.00016712,2]
[384816186,1757570803123,-213.30876788,0.0002374,2]
[384816190,1757570845154,500.0,0.00013699,2]
[384816211,1757571031876,-4.20194685,0.0002374,2]
[384816212,1757571031886,-151.0,0.00024002,2]
[384816213,1757571031895,-467.81006999,0.000248,2]
[384816214,1757571031907,-32.18993001,0.000248,2]
[384816215,1757571031916,-454.27570952,0.000249,2]
[384816216,1757571031936,-205.1607134,0.000249,2]
[384816217,1757571031946,-493.0,0.000271,2]
[384816218,1757571031956,-156.75848853,0.00027827,8]
[384816221,1757571032109,-430.81618104,0.00027827,8]
[384816222,1757571032120,-71.86175315,0.00027827,8]
[384816223,1757571032130,-182.074147,0.0002786,2]
[384816224,1757571032139,-648.95835222,0.00028,2]
[384816230,1757571037702,-548.47638316,0.00028,2]
[384816688,1757571042717,-468.173718,0.00028,2]
[384816711,1757571042885,-1334.39154662,0.00028,2]
[384816713,1757571042894,-13.14845338,0.0002828,2]
[384816780,1757571043402,-23.7009742,0.0002828,2]
[384817021,1757571045751,-151.0,0.00024034,2]
[384817023,1757571045761,-446.15057242,0.0002828,2]
[384817025,1757571045770,-170.87,0.00028295,2]
[384817027,1757571045779,-347.27,0.000283,30]
[384817029,1757571045789,-150.0,0.00028311,2]
[384817031,1757571045798,-232.74,0.0002837,2]
[384817033,1757571045807,-150.0,0.00028371,7]
[384817035,1757571045816,-605.43001307,0.00028392,3]
[384817037,1757571045828,-60.56998693,0.00028392,3]
[384817039,1757571045838,-213.90210156,0.0002844,2]
[384817041,1757571045848,-572.35,0.00028471,2]
[384817043,1757571045858,-209.95,0.00028526,2]
[384817045,1757571045869,-546.54140893,0.00028568,2]
[384817047,1757571045881,-438.5779329,0.00028568,2]
[384817063,1757571046099,-214.88065817,0.00028568,2]
[384817065,1757571046109,-250.87283516,0.00028569,2]
[384817067,1757571046119,-168.41,0.00028603,2]
[384817069,1757571046128,-287.84356876,0.00028698,2]
[384817071,1757571046138,-217.95641441,0.00028825,7]
[384817073,1757571046147,-169.98404997,0.00028825,7]
[384817075,1757571046156,-241.21021418,0.00028825,7]
[384817077,1757571046165,-150.0,0.00028825,7]
[384817079,1757571046177,-324.81430237,0.00028827,2]
[384817081,1757571046186,-361.78503597,0.00028956,2]
[384817083,1757571046197,-398.75576957,0.00029085,2]
[384817085,1757571046207,-86.7991957,0.00029214,2]
[384817599,1757571118783,176.06,0.00028985,120]
[384817640,1757571336409,-336.43646304,0.000249,2]
[384817943,1757571912552,800.0,0.00030136,120]
[384818046,1757572109184,150.81,0.00028219,120]
[384818048,1757572121855,575.0,0.0003,120]
[384818101,1757572161336,-1199.05707974,0.00021,2]
[384818102,1757572161361,-234.59,0.00023004,2]
[384818103,1757572161384,-190.06518753,0.0002382,2]
[384818104,1757572161406,-3219.21478673,0.00024,5]
[384818245,1757572221135,-267.2510977,0.0002382,2]
[384818282,1757572232079,-288.00870103,0.0002382,2]
[384818283,1757572232088,-1780.79105943,0.00024,5]
[384818284,1757572232097,-604.25944579,0.000249,2]
[384818285,1757572232106,-123.05460861,0.00026999,2]
[384818286,1757572232254,-176.94539139,0.00026999,2]
[384818287,1757572232263,-1200.0,0.00026999,2]
[384818288,1757572232274,-506.0,0.00027,2]
[384818289,1757572232284,-12983.7962308,0.00027,7]
[384818290,1757572232294,-567.0,0.00027617,2]
[384818291,1757572232304,-850.0,0.00027619,2]
[384818292,1757572232314,-1158.98175874,0.00027619,2]
[384818293,1757572232326,-688.10798044,0.00027619,2]
[384818294,1757572232335,-65.85301306,0.0002762,2]
[384818295,1757572232350,-3092.39695164,0.0002762,2]
[384818296,1757572232361,-1102.5821673,0.0002762,2]
[384818297,1757572232370,-15487.1534364,0.0002762,2]
[384818298,1757572232380,-3696.8522851,0.0002762,2]
[384818299,1757572232390,-604.25944577,0.00027827,8]
[384818300,1757572232401,-156.0,0.00028,7]
[384818301,1757572232411,-156.0,0.00028,14]
[384818302,1757572232422,-157.92,0.00028,21]
[384818303,1757572232433,-496.0,0.0002818,2]
[384818304,1757572232444,-5223.21,0.00028238,2]
[384818305,1757572232453,-666.0,0.0002827,3]
[384818306,1757572232463,-170.87,0.00028348,2]
[384818307,1757572232471,-242.03,0.00028411,2]
[384818308,1757572232481,-1428.18,0.00028413,2]
[384818309,1757572232490,-150.0,0.0002844,7]
[384818310,1757572232499,-1030.68,0.0002844,2]
[384818311,1757572232508,-1500.0,0.000285,2]
[384818312,1757572232518,-200.0,0.00028506,2]
[384818314,1757572232528,-372.86,0.00028534,30]
[384818316,1757572232537,-811.94560689,0.00028617,2]
[384818318,1757572232546,-811.94560689,0.00028798,2]
[384818320,1757572232556,-458.01,0.00028971,7]
[384818321,1757572232566,-6203.44153061,0.00029,2]
[384818323,1757572232579,-525.36174078,0.00029,2]
[384818329,1757572232624,-7253.61672861,0.00029,2]
[384818331,1757572232633,-486.79,0.00029009,2]
[384818333,1757572232642,-670.58624095,0.00029051,2]
[384818334,1757572232651,-257.91778498,0.00029051,2]
[384818336,1757572232661,-151.0,0.00029051,2]
[384818338,1757572232670,-500.0,0.00029051,2]
[384818340,1757572232679,-160.31101211,0.00029185,2]
[384818342,1757572232688,-400.0,0.00029189,2]
[384818344,1757572232697,-2449.11,0.00029242,2]
[384818346,1757572232707,-1190.64,0.00029242,2]
[384818348,1757572232717,-1190.64,0.00029242,2]
[384818350,1757572232726,-1680.0,0.00029318,2]
[384818352,1757572232735,-486.0,0.0002937,2]
[384818354,1757572232745,-1016.0,0.000294,2]
[384818356,1757572232754,-151.0,0.00029599,2]
[384818358,1757572232764,-1400.0,0.000297,10]
[384818360,1757572232773,-507.59084733,0.00029778,5]
[384818362,1757572232783,-2800.0,0.000298,10]
[384818364,1757572232791,-2567.07125744,0.00029889,2]
[384818366,1757572232800,-155.31832481,0.00029889,2]
[384818367,1757572232810,-3198.91407169,0.00029899,2]
[384818369,1757572232819,-184.19059875,0.00029899,2]
[384818371,1757572232828,-1861.00682954,0.000299,10]
[384818374,1757572232839,-1950.11968958,0.000299,10]
[384818780,1757572238139,-553.05653057,0.0002762,2]
[384818781,1757572238155,-356.23952003,0.0002762,2]
[384818782,1757572238238,-61004.72785357,0.0002762,2]
[384818783,1757572238248,-388.87348088,0.000299,10]
[384818784,1757572238258,-284.57683421,0.00029945,2]
[384818785,1757572238268,-150.0,0.00029959,2]
[384818786,1757572238278,-262.82293473,0.00029961,2]
[384818787,1757572238288,-334.97040701,0.00029963,2]
[384818788,1757572238297,-407.11787929,0.00029965,2]
[384818789,1757572238306,-479.26535157,0.00029968,2]
[384818790,1757572238316,-551.41282384,0.0002997,2]
[384818792,1757572238325,-623.56029612,0.00029972,2]
[384818793,1757572238335,-508.7456214,0.00029973,5]
[384818794,1757572238344,-507.74076684,0.00029973,5]
[384818795,1757572238354,-500.0,0.00029973,2]
[384818796,1757572238364,-151.41,0.00029973,2]
[384818797,1757572238373,-695.7077684,0.00029974,2]
[384818798,1757572238386,-767.85524068,0.00029977,2]
[384818799,1757572238397,-500.0,0.00029978,2]
[384818801,1757572238406,-152.39747934,0.00029978,2]
[384818803,1757572238416,-150.0,0.00029978,2]
[384818805,1757572238426,-840.00271296,0.00029979,2]
[384818807,1757572238437,-151.0,0.00029986,7]
[384818809,1757572238446,-175.39,0.00029986,2]
[384818811,1757572238455,-151.0,0.00029987,7]
[384818813,1757572238466,-400.0,0.00029988,7]
[384818815,1757572238476,-405.42132074,0.00029988,7]
[384818817,1757572238486,-400.0,0.00029988,7]
[384818819,1757572238495,-402.56976671,0.00029988,7]
[384818821,1757572238505,-400.0,0.00029988,7]
[384818823,1757572238514,-400.0,0.00029988,7]
[384818825,1757572238523,-400.0,0.00029988,7]
[384818827,1757572238533,-771.04,0.00029988,7]
[384818829,1757572238542,-400.0,0.00029988,7]
[384818831,1757572238551,-400.0,0.00029988,7]
[384818833,1757572238561,-400.0,0.00029988,7]
[384818835,1757572238571,-400.0,0.00029988,7]
[384818837,1757572238581,-400.0,0.00029988,7]
[384818839,1757572238590,-400.0,0.00029988,7]
[384818842,1757572238601,-400.0,0.00029988,7]
[384818844,1757572238611,-400.0,0.00029988,7]
[384818846,1757572238620,-400.0,0.00029988,7]
[384818848,1757572238630,-1202.91,0.00029988,7]
[384818849,1757572238641,-400.0,0.00029988,7]
[384818852,1757572238650,-401.32565686,0.00029988,2]
[384818853,1757572238660,-400.0,0.00029988,7]
[384818856,1757572238669,-404.96282279,0.00029988,7]
[384818857,1757572238679,-403.62844071,0.00029988,7]
[384818859,1757572238689,-400.0,0.00029988,7]
[384818862,1757572238698,-189.80086154,0.00029988,7]
[384818863,1757572238707,-400.0,0.00029988,7]
[384818865,1757572238717,-400.0,0.00029988,7]
[384818892,1757572239044,-400.0,0.00029988,7]
[384818896,1757572239075,-400.0,0.00029988,7]
[384818898,1757572239085,-404.37356198,0.00029988,7]
[384818900,1757572239094,-400.0,0.00029988,7]
[384818902,1757572239104,-404.74576015,0.00029988,7]
[384818904,1757572239114,-425.49,0.00029988,7]
[384818906,1757572239124,-400.0,0.00029988,7]
[384818908,1757572239133,-500.0,0.00029988,2]
[384818910,1757572239143,-500.0,0.00029988,2]
[384818912,1757572239152,-500.0,0.00029988,2]
[384818914,1757572239161,-500.0,0.00029988,2]
[384818916,1757572239171,-500.0,0.00029988,2]
[384818918,1757572239181,-500.0,0.00029988,2]
[384818920,1757572239191,-500.0,0.00029988,2]
[384818922,1757572239201,-500.0,0.00029988,2]
[384818924,1757572239210,-500.0,0.00029988,2]
[384818926,1757572239220,-500.0,0.00029988,2]
[384818928,1757572239229,-500.0,0.00029988,2]
[384818930,1757572239239,-500.0,0.00029988,2]
[384818932,1757572239248,-500.0,0.00029988,2]
[384818934,1757572239257,-500.0,0.00029988,2]
[384818936,1757572239267,-500.0,0.00029988,2]
[384818938,1757572239276,-500.0,0.00029988,2]
[384818940,1757572239286,-500.0,0.00029988,2]
[384818942,1757572239296,-500.0,0.00029988,2]
[384818944,1757572239305,-500.0,0.00029988,2]
[384818946,1757572239314,-500.0,0.00029988,2]
[384818948,1757572239323,-500.0,0.00029988,2]
[384818950,1757572239333,-500.0,0.00029988,2]
[384818952,1757572239343,-500.0,0.00029988,2]
[384818954,1757572239352,-500.0,0.00029988,2]
[384818956,1757572239362,-500.0,0.00029988,2]
[384818958,1757572239371,-500.0,0.00029988,2]
[384818960,1757572239380,-500.0,0.00029988,2]
[384818962,1757572239390,-500.0,0.00029988,2]
[384818964,1757572239399,-500.0,0.00029988,2]
[384818966,1757572239409,-500.0,0.00029988,2]
[384818968,1757572239421,-500.0,0.00029988,2]
[384818970,1757572239430,-500.0,0.00029988,2]
[384818972,1757572239440,-360.24713573,0.00029988,2]
[384818974,1757572239449,-88500.88747568,0.00029989,2]
[384819037,1757572240010,-14448.2327591,0.00029989,2]
[384819089,1757572240496,-13494.97866212,0.00029989,2]
[384819092,1757572240515,-806.32100002,0.00029989,2]
[384819097,1757572240552,-11468.61503189,0.00029989,2]
[384819362,1757572243239,-400.0,0.00029988,7]
[384819364,1757572243249,-400.0,0.00029988,7]
[384819366,1757572243258,-400.0,0.00029988,7]
[384819368,1757572243268,-400.0,0.00029988,7]
[384819370,1757572243278,-389.68456891,0.00029988,7]
[384819372,1757572243288,-48.87254655,0.00029989,2]
[384819657,1757572246165,-400.0,0.00029988,7]
[384819658,1757572246174,-400.0,0.00029988,7]
[384819660,1757572246183,-87.39715606,0.00029988,7]
[384819669,1757572246255,-312.60284394,0.00029988,7]
[384819671,1757572246264,-400.0,0.00029988,7]
[384819673,1757572246274,-1661.39754871,0.00029989,2]
[384819692,1757572246416,-563.97548297,0.000249,2]
[384819694,1757572246430,-25575.94532546,0.00029989,2]
[384819702,1757572246495,-1216.62413947,0.00029989,2]
[384819704,1757572246505,-116.58119586,0.00029989,2]
[384819706,1757572246516,-664.37168,0.00029989,2]
[384819713,1757572246575,-563.97548271,0.00027827,8]
[384819715,1757572246584,-830.33116697,0.00029989,2]
[384820068,1757572250983,12137.169114,0.0002,2]
[384820655,1757572307781,675.93,0.00029011,120]
[384820704,1757572378338,402.48858881,0.00029999,120]
[384820707,1757572410197,277.21,0.00014498,2]
[384820708,1757572410402,277.21,0.00015261,2]
[384820709,1757572410578,277.21,0.00016024,2]
[384820710,1757572410792,277.21,0.00016787,2]
[384820711,1757572411003,277.21,0.0001755,2]
[384820712,1757572411244,277.21,0.00018313,2]
[384820713,1757572411447,277.21,0.00019076,2]
[384820714,1757572411661,277.21,0.00019839,2]
[384820715,1757572648704,160.4,0.00016712,2]
[384820784,1757573046357,168.06,0.00028024,120]
[384820816,1757573357219,557.58,0.00014187,2]
[384820818,1757573357419,557.58,0.00014934,2]
[384820819,1757573357631,557.58,0.00015681,2]
[384820820,1757573358055,557.58,0.00016427,2]
[384820821,1757573358260,557.58,0.00017174,2]